Workbook

Sheet Read Me
A4: About this Tool
A7: Purpose
A8: This multi-land use screening tool was developed to assist project applicants and planners determine whether a discretionary development project may be below the Bay Area Air Quality Management District's (BAAQMD's) CEQA thresholds for air quality impacts related to construction and operation of the project. This tool does not work for projects which have construction-related activities overlapping with operational activities, and vice versa.
A13: How this Tool was Developed
A14: Each land use type available in the California Emissions Estimator Model (CalEEMod) version 2020.4.0 was modeled using default parameters and inputs for both construction and operation. All wood-burning appliance were removed from the model runs because the installation of wood-burning devices in new development is prohibited per BAAQMD Regulation 6, Rule 3. No mitigation was applied. Each land use type was run in CalEEMod for 100,000 square feet of the size metric applicable for a construction year of 2020 and an operational year of 2021 to represent the most conservative emissions estimates. In the instance of residential land uses, 100 dwelling units equated to 100,000 square feet except in the cases of mobile home parks and single family residences, in which 83 units and 56 units equaled 100,000 square feet, respectively. Because CalEEMod version 2020.4.0 uses the California Air Resources Board's EMFAC2017 model, the mobile source emissions factors were replaced with EMFAC2021 results for all model runs conducted. All model runs were conducted for the summer season which generally results in higher emissions and is therefore more conservative. Average daily emissions for each land use were then divided by the building area included in the model run (i.e., 100,000 square feet) to obtain average daily emissions per square foot. The average daily emissions for each land use type were normalized to the NOx thresholds (54 lb/day for both construction and operation). Preliminary modeling conducted in CalEEMod confirmed that NOx is the most restrictive pollutant; therefore, NOx was used for the purposes of developing the screening tool. Using the normalized average daily emissions, a 100-point system was developed, where 100 points means that the 54 lb/day NOx limit has been exceeded. Each land use type was given a point value per dominant land use metric (e.g., X points per dwelling unit for residential land uses, X points per 1,000 square feet for nonresidential land uses). An input table was created that pulls the point values for each land use type. By entering a project's land use types and sizes, users can see if their project would exceed the construction and/or operational NOx threshold (which is the surrogate for all other criteria air pollutants and precursors). If the project could exceed either the construction or operational threshold, the tool states that BAAQMD's recommendation would be to conduct additional analysis to determine the potential impact of the project with regard to air quality
A45: Project Example 1
A46: The project applicant is seeking to construct a mixed-use development project with 50 units of high-rise residential, 50,000 square feet of retail space, and 100 parking spaces in a parking lot onsite. Using the drop-down menus in the screening tool, the project applicant selects these land use types and enters the sizes. Upon inputting all land use types, the screening tool indicates that neither construction or operational thresholds would be exceeded and no further analysis is recommended by BAAQMD to determine a significance conclusion with regard to air quality.
A48: Project Example 2
A49: The project applicant is seeking to construct a mixed-use development project with 300 hotel rooms, a 25,000 square foot restaurant, and separate enclosed parking garage for 500 vehicles. The project applicant would like to construct the land uses at the same time to expedite the construction schedule. Using the drop-down menus in the screening tool, the user selects these land use types and enters the sizes. The user also checks the box for each land use type entered that says "Has Overlapping Construction Phases." Upon inputting all land use types, the screening tool indicates that the construction thresholds would be exceeded and further analysis is recommended by BAAQMD to determine a significance conclusion with regard to air quality. The screening tool also indicates that the operational thresholds would not be exceeded and thus no further analysis would be required for operation-related air quality impacts.

Sheet Screening Tool
B4: Multi-land Use Screening Tool Overview
B5: This screening tool helps to determine whether the daily construction or operational emissions associated with a proposed land use development project with multiple land use types would exceed BAAQMD's average daily thresholds.
B7: Instructions
B8: Use the drop-down menus to select the land use category and land use type for each type of land use included in the project. Enter the proposed size of each land use based on the default units that are autopopulated in column D. The tool will estimate whether the project may exceed the construction thresholds, operational thresholds, or both, and whether further analysis is needed before making a significance determination. This tool will not work for projects which have construction-related activities overlapping with operational activities, and vice versa.
B10: Construction and Operation Screening Tool
B11: Land Use Category | C11: Land Use Type | D11: Unit | E11: Project Land Use Size | F11: Has Overlapping Construction Phases?
B12: Residential | C12: Apartments Mid Rise | D12: =IF(ISBLANK(C12),"",VLOOKUP(C12,Sheet1!$C$3:$E$71,2,FALSE)) -> DU | E12: 40 | G12: TRUE
B13: Commercial | C13: General Office Building | D13: =IF(ISBLANK(C13),"",VLOOKUP(C13,Sheet1!$C$3:$E$71,2,FALSE)) -> KSF | E13: 4 | G13: TRUE
B14: Parking | C14: Enclosed Parking Structure | D14: =IF(ISBLANK(C14),"",VLOOKUP(C14,Sheet1!$C$3:$E$71,2,FALSE)) -> Spaces | E14: 18 | G14: TRUE
D15: =IF(ISBLANK(C15),"",VLOOKUP(C15,Sheet1!$C$3:$E$71,2,FALSE)) ->  | G15: FALSE
D16: =IF(ISBLANK(C16),"",VLOOKUP(C16,Sheet1!$C$3:$E$71,2,FALSE)) ->  | G16: FALSE
D17: =IF(ISBLANK(C17),"",VLOOKUP(C17,Sheet1!$C$3:$E$71,2,FALSE)) ->  | G17: FALSE
D18: =IF(ISBLANK(C18),"",VLOOKUP(C18,Sheet1!$C$3:$E$71,2,FALSE)) ->  | G18: FALSE
D19: =IF(ISBLANK(C19),"",VLOOKUP(C19,Sheet1!$C$3:$E$71,2,FALSE)) ->  | G19: FALSE
D20: =IF(ISBLANK(C20),"",VLOOKUP(C20,Sheet1!$C$3:$E$71,2,FALSE)) ->  | G20: FALSE
D21: =IF(ISBLANK(C21),"",VLOOKUP(C21,Sheet1!$C$3:$E$71,2,FALSE)) ->  | G21: FALSE
D22: =IF(ISBLANK(C22),"",VLOOKUP(C22,Sheet1!$C$3:$E$71,2,FALSE)) ->  | G22: FALSE
D23: =IF(ISBLANK(C23),"",VLOOKUP(C23,Sheet1!$C$3:$E$71,2,FALSE)) ->  | G23: FALSE
D24: =IF(ISBLANK(C24),"",VLOOKUP(C24,Sheet1!$C$3:$E$71,2,FALSE)) ->  | G24: FALSE
D25: =IF(ISBLANK(C25),"",VLOOKUP(C25,Sheet1!$C$3:$E$71,2,FALSE)) ->  | G25: FALSE
D26: =IF(ISBLANK(C26),"",VLOOKUP(C26,Sheet1!$C$3:$E$71,2,FALSE)) ->  | G26: FALSE
D27: =IF(ISBLANK(C27),"",VLOOKUP(C27,Sheet1!$C$3:$E$71,2,FALSE)) ->  | G27: FALSE
D28: =IF(ISBLANK(C28),"",VLOOKUP(C28,Sheet1!$C$3:$E$71,2,FALSE)) ->  | G28: FALSE
D29: =IF(ISBLANK(C29),"",VLOOKUP(C29,Sheet1!$C$3:$E$71,2,FALSE)) ->  | G29: FALSE
D30: =IF(ISBLANK(C30),"",VLOOKUP(C30,Sheet1!$C$3:$E$71,2,FALSE)) ->  | G30: FALSE
D31: =IF(ISBLANK(C31),"",VLOOKUP(C31,Sheet1!$C$3:$E$71,2,FALSE)) ->  | G31: FALSE
B32: Exceeds Construction Threshold? | E32: =IF(COUNT(E12:E31)=0,"",IF(Calculation!E24>100,"YES",IF(Calculation!E24=0,"","NO"))) -> NO | G32: =IF(OR(COUNT(C12:C31)=0,COUNT(E12:E31)=0),"","Modeling Not Required") -> 
B33: Exceeds Operational Threshold? | E33: =IF(COUNT(E12:E31)=0,"",IF(Calculation!G24>100,"YES",IF(Calculation!G24=0,"","NO"))) -> NO
B34: BAAQMD's Recommendation | E34: =IF(COUNT(E12:E31)=0,"",IF(OR(E32="YES",E33="YES"),"Further Analysis Required",IF(OR(COUNTA(C12:C31)=0,COUNT(E12:E31)=0),"","Further Analysis Not Required"))) -> Further Analysis Not Required
B36: Developed by
B41: Last updated: | C41: 2022-05-06

Sheet Calculation
D2: Construction | F2: Operations
D3: Points per unit | E3: total points | F3: Points per unit | G3: total points
D4: =IF(ISBLANK('Screening Tool'!C12),0,VLOOKUP('Screening Tool'!C12,Sheet1!$C$3:$H$70,4,FALSE)) -> 0.2181192345 | E4: =D4*'Screening Tool'!E12*IF('Screening Tool'!G12=TRUE,2,1) -> 17.44953876 | F4: =IF(ISBLANK('Screening Tool'!C12),0,VLOOKUP('Screening Tool'!C12,Sheet1!$C$3:$H$70,6,FALSE)) -> 0.1322597666 | G4: ='Screening Tool'!E12*Calculation!F4 -> 5.290390665
D5: =IF(ISBLANK('Screening Tool'!C13),0,VLOOKUP('Screening Tool'!C13,Sheet1!$C$3:$H$70,4,FALSE)) -> 0.221120749 | E5: =D5*'Screening Tool'!E13*IF('Screening Tool'!G13=TRUE,2,1) -> 1.768965992 | F5: =IF(ISBLANK('Screening Tool'!C13),0,VLOOKUP('Screening Tool'!C13,Sheet1!$C$3:$H$70,6,FALSE)) -> 0.1307701674 | G5: ='Screening Tool'!E13*Calculation!F5 -> 0.5230806697
D6: =IF(ISBLANK('Screening Tool'!C14),0,VLOOKUP('Screening Tool'!C14,Sheet1!$C$3:$H$70,4,FALSE)) -> 0.08856395429 | E6: =D6*'Screening Tool'!E14*IF('Screening Tool'!G14=TRUE,2,1) -> 3.188302354 | F6: =IF(ISBLANK('Screening Tool'!C14),0,VLOOKUP('Screening Tool'!C14,Sheet1!$C$3:$H$70,6,FALSE)) -> 0.0003506849315 | G6: ='Screening Tool'!E14*Calculation!F6 -> 0.006312328767
D7: =IF(ISBLANK('Screening Tool'!C15),0,VLOOKUP('Screening Tool'!C15,Sheet1!$C$3:$H$70,4,FALSE)) -> 0 | E7: =D7*'Screening Tool'!E15*IF('Screening Tool'!G15=TRUE,2,1) -> 0 | F7: =IF(ISBLANK('Screening Tool'!C15),0,VLOOKUP('Screening Tool'!C15,Sheet1!$C$3:$H$70,6,FALSE)) -> 0 | G7: ='Screening Tool'!E15*Calculation!F7 -> 0
D8: =IF(ISBLANK('Screening Tool'!C16),0,VLOOKUP('Screening Tool'!C16,Sheet1!$C$3:$H$70,4,FALSE)) -> 0 | E8: =D8*'Screening Tool'!E16*IF('Screening Tool'!G16=TRUE,2,1) -> 0 | F8: =IF(ISBLANK('Screening Tool'!C16),0,VLOOKUP('Screening Tool'!C16,Sheet1!$C$3:$H$70,6,FALSE)) -> 0 | G8: ='Screening Tool'!E16*Calculation!F8 -> 0
D9: =IF(ISBLANK('Screening Tool'!C17),0,VLOOKUP('Screening Tool'!C17,Sheet1!$C$3:$H$70,4,FALSE)) -> 0 | E9: =D9*'Screening Tool'!E17*IF('Screening Tool'!G17=TRUE,2,1) -> 0 | F9: =IF(ISBLANK('Screening Tool'!C17),0,VLOOKUP('Screening Tool'!C17,Sheet1!$C$3:$H$70,6,FALSE)) -> 0 | G9: ='Screening Tool'!E17*Calculation!F9 -> 0
D10: =IF(ISBLANK('Screening Tool'!C18),0,VLOOKUP('Screening Tool'!C18,Sheet1!$C$3:$H$70,4,FALSE)) -> 0 | E10: =D10*'Screening Tool'!E18*IF('Screening Tool'!G18=TRUE,2,1) -> 0 | F10: =IF(ISBLANK('Screening Tool'!C18),0,VLOOKUP('Screening Tool'!C18,Sheet1!$C$3:$H$70,6,FALSE)) -> 0 | G10: ='Screening Tool'!E18*Calculation!F10 -> 0
D11: =IF(ISBLANK('Screening Tool'!C19),0,VLOOKUP('Screening Tool'!C19,Sheet1!$C$3:$H$70,4,FALSE)) -> 0 | E11: =D11*'Screening Tool'!E19*IF('Screening Tool'!G19=TRUE,2,1) -> 0 | F11: =IF(ISBLANK('Screening Tool'!C19),0,VLOOKUP('Screening Tool'!C19,Sheet1!$C$3:$H$70,6,FALSE)) -> 0 | G11: ='Screening Tool'!E19*Calculation!F11 -> 0
D12: =IF(ISBLANK('Screening Tool'!C20),0,VLOOKUP('Screening Tool'!C20,Sheet1!$C$3:$H$70,4,FALSE)) -> 0 | E12: =D12*'Screening Tool'!E20*IF('Screening Tool'!G20=TRUE,2,1) -> 0 | F12: =IF(ISBLANK('Screening Tool'!C20),0,VLOOKUP('Screening Tool'!C20,Sheet1!$C$3:$H$70,6,FALSE)) -> 0 | G12: ='Screening Tool'!E20*Calculation!F12 -> 0
D13: =IF(ISBLANK('Screening Tool'!C21),0,VLOOKUP('Screening Tool'!C21,Sheet1!$C$3:$H$70,4,FALSE)) -> 0 | E13: =D13*'Screening Tool'!E21*IF('Screening Tool'!G21=TRUE,2,1) -> 0 | F13: =IF(ISBLANK('Screening Tool'!C21),0,VLOOKUP('Screening Tool'!C21,Sheet1!$C$3:$H$70,6,FALSE)) -> 0 | G13: ='Screening Tool'!E21*Calculation!F13 -> 0
D14: =IF(ISBLANK('Screening Tool'!C22),0,VLOOKUP('Screening Tool'!C22,Sheet1!$C$3:$H$70,4,FALSE)) -> 0 | E14: =D14*'Screening Tool'!E22*IF('Screening Tool'!G22=TRUE,2,1) -> 0 | F14: =IF(ISBLANK('Screening Tool'!C22),0,VLOOKUP('Screening Tool'!C22,Sheet1!$C$3:$H$70,6,FALSE)) -> 0 | G14: ='Screening Tool'!E22*Calculation!F14 -> 0
D15: =IF(ISBLANK('Screening Tool'!C23),0,VLOOKUP('Screening Tool'!C23,Sheet1!$C$3:$H$70,4,FALSE)) -> 0 | E15: =D15*'Screening Tool'!E23*IF('Screening Tool'!G23=TRUE,2,1) -> 0 | F15: =IF(ISBLANK('Screening Tool'!C23),0,VLOOKUP('Screening Tool'!C23,Sheet1!$C$3:$H$70,6,FALSE)) -> 0 | G15: ='Screening Tool'!E23*Calculation!F15 -> 0
D16: =IF(ISBLANK('Screening Tool'!C24),0,VLOOKUP('Screening Tool'!C24,Sheet1!$C$3:$H$70,4,FALSE)) -> 0 | E16: =D16*'Screening Tool'!E24*IF('Screening Tool'!G24=TRUE,2,1) -> 0 | F16: =IF(ISBLANK('Screening Tool'!C24),0,VLOOKUP('Screening Tool'!C24,Sheet1!$C$3:$H$70,6,FALSE)) -> 0 | G16: ='Screening Tool'!E24*Calculation!F16 -> 0
D17: =IF(ISBLANK('Screening Tool'!C25),0,VLOOKUP('Screening Tool'!C25,Sheet1!$C$3:$H$70,4,FALSE)) -> 0 | E17: =D17*'Screening Tool'!E25*IF('Screening Tool'!G25=TRUE,2,1) -> 0 | F17: =IF(ISBLANK('Screening Tool'!C25),0,VLOOKUP('Screening Tool'!C25,Sheet1!$C$3:$H$70,6,FALSE)) -> 0 | G17: ='Screening Tool'!E25*Calculation!F17 -> 0
D18: =IF(ISBLANK('Screening Tool'!C26),0,VLOOKUP('Screening Tool'!C26,Sheet1!$C$3:$H$70,4,FALSE)) -> 0 | E18: =D18*'Screening Tool'!E26*IF('Screening Tool'!G26=TRUE,2,1) -> 0 | F18: =IF(ISBLANK('Screening Tool'!C26),0,VLOOKUP('Screening Tool'!C26,Sheet1!$C$3:$H$70,6,FALSE)) -> 0 | G18: ='Screening Tool'!E26*Calculation!F18 -> 0
D19: =IF(ISBLANK('Screening Tool'!C27),0,VLOOKUP('Screening Tool'!C27,Sheet1!$C$3:$H$70,4,FALSE)) -> 0 | E19: =D19*'Screening Tool'!E27*IF('Screening Tool'!G27=TRUE,2,1) -> 0 | F19: =IF(ISBLANK('Screening Tool'!C27),0,VLOOKUP('Screening Tool'!C27,Sheet1!$C$3:$H$70,6,FALSE)) -> 0 | G19: ='Screening Tool'!E27*Calculation!F19 -> 0
D20: =IF(ISBLANK('Screening Tool'!C28),0,VLOOKUP('Screening Tool'!C28,Sheet1!$C$3:$H$70,4,FALSE)) -> 0 | E20: =D20*'Screening Tool'!E28*IF('Screening Tool'!G28=TRUE,2,1) -> 0 | F20: =IF(ISBLANK('Screening Tool'!C28),0,VLOOKUP('Screening Tool'!C28,Sheet1!$C$3:$H$70,6,FALSE)) -> 0 | G20: ='Screening Tool'!E28*Calculation!F20 -> 0
D21: =IF(ISBLANK('Screening Tool'!C29),0,VLOOKUP('Screening Tool'!C29,Sheet1!$C$3:$H$70,4,FALSE)) -> 0 | E21: =D21*'Screening Tool'!E29*IF('Screening Tool'!G29=TRUE,2,1) -> 0 | F21: =IF(ISBLANK('Screening Tool'!C29),0,VLOOKUP('Screening Tool'!C29,Sheet1!$C$3:$H$70,6,FALSE)) -> 0 | G21: ='Screening Tool'!E29*Calculation!F21 -> 0
D22: =IF(ISBLANK('Screening Tool'!C30),0,VLOOKUP('Screening Tool'!C30,Sheet1!$C$3:$H$70,4,FALSE)) -> 0 | E22: =D22*'Screening Tool'!E30*IF('Screening Tool'!G30=TRUE,2,1) -> 0 | F22: =IF(ISBLANK('Screening Tool'!C30),0,VLOOKUP('Screening Tool'!C30,Sheet1!$C$3:$H$70,6,FALSE)) -> 0 | G22: ='Screening Tool'!E30*Calculation!F22 -> 0
D23: =IF(ISBLANK('Screening Tool'!C31),0,VLOOKUP('Screening Tool'!C31,Sheet1!$C$3:$H$70,4,FALSE)) -> 0 | E23: =D23*'Screening Tool'!E31*IF('Screening Tool'!G31=TRUE,2,1) -> 0 | F23: =IF(ISBLANK('Screening Tool'!C31),0,VLOOKUP('Screening Tool'!C31,Sheet1!$C$3:$H$70,6,FALSE)) -> 0 | G23: ='Screening Tool'!E31*Calculation!F23 -> 0
D24: Total points | E24: =SUM(E4:E23) -> 22.4068071 | G24: =SUM(G4:G23) -> 5.819783663

Sheet Sheet1
B2: Land Use Category | C2: Land Use Subcategory | D2: Land Use Unit | E2: Construction | F2: Points per unit - Construction | G2: Operation | H2: Points per unit - Operation
B3: Commercial | C3: Bank | D3: KSF | E3: 52 | F3: 0.221120749 | G3: 73 | H3: 0.983652968
B4: Commercial | C4: General Office Building | D4: KSF | E4: 52 | F4: 0.221120749 | G4: 546 | H4: 0.1307701674
B5: Commercial | C5: Government (Civic Center) | D5: KSF | E5: 52 | F5: 0.221120749 | G5: 194 | H5: 0.3182283105
B6: Commercial | C6: Government Office Building | D6: KSF | E6: 52 | F6: 0.221120749 | G6: 282 | H6: 0.2249355657
B7: Commercial | C7: Hospital | D7: KSF | E7: 52 | F7: 0.221120749 | G7: 492 | H7: 0.1637645865
B8: Commercial | C8: Medical Office Building | D8: KSF | E8: 52 | F8: 0.221120749 | G8: 190 | H8: 0.3415667174 | N8: Commercial | O8: Education | P8: Industrial | Q8: Parking | R8: Recreational | S8: Residential | T8: Retail
B9: Commercial | C9: Office Park | D9: KSF | E9: 52 | F9: 0.221120749 | G9: 492 | H9: 0.1417351598 | N9: Bank | O9: Daycare Center | P9: General Heavy Industry | Q9: Enclosed Parking Structure | R9: Arena | S9: Apartments High Rise | T9: Auto Care Center
B10: Commercial | C10: Pharmacy-Drug Store (no Drive-Thru) | D10: KSF | E10: 52 | F10: 0.221120749 | G10: 80 | H10: 1.014506342 | N10: General Office Building | O10: School – Elementary | P10: General Light Industry | Q10: Enclosed Parking w/ Elevator | R10: City Park | S10: Apartments Low Rise | T10: Convenience Market (24-hr)
B11: Commercial | C11: Pharmacy-Drug Store (w/ Drive-Thru) | D11: KSF | E11: 52 | F11: 0.221120749 | G11: 63 | H11: 1.128681887 | N11: Government (Civic Center) | O11: School – High School | P11: Industrial Park | Q11: Other Asphalt Surfaces | R11: Fast Food Rest No DriveThru | S11: Apartments Mid Rise | T11: Convenience Market w/ Gas Pumps
B12: Commercial | C12: Research & Development | D12: KSF | E12: 52 | F12: 0.221120749 | G12: 485 | H12: 0.1446067986 | N12: Government Office Building | O12: College – Junior (2-year) | P12: Manufacturing | Q12: Other Non-Asphalt Surfaces | R12: Fast Food Rest w DriveThru | S12: Condo-Townhouse | T12: Discount Club
B13: Education | C13: Daycare Center | D13: KSF | E13: 52 | F13: 0.2214098857 | G13: 147 | H13: 0.4306189751 | N13: Hospital | O13: School – Junior High | P13: Refrig Warehouse- No Rail | Q13: Parking Lot | R13: Golf Course | S13: Condo-Townhouse Hi-Rise | T13: Electronic Superstore
B14: Education | C14: School – Elementary | D14: KSF | E14: 52 | F14: 0.2214098857 | G14: 313 | H14: 0.2049771689 | N14: Medical Office Building | O14: Library | P14: Refrig Warehouse- Rail | Q14: Unenclosed Parking Structure | R14: Health Club | S14: Congregate Care (Assisted Living) | T14: Free-Standing Discount Store
B15: Education | C15: School – High School | D15: KSF | E15: 52 | F15: 0.2214098857 | G15: 406 | H15: 0.1726484018 | N15: Office Park | O15: College – University (4-year) | P15: Unrefrig Warehouse- No Rail | Q15: Unenclosed Parking Structure w/ Elevator | R15: High Turnover (Sit Down Restaurant) | S15: Mobile Home Park | T15: Free-Standing Discount Superstore
B16: Education | C16: College – Junior (2-year) | D16: KSF | E16: 52 | F16: 0.2214098857 | G16: 299 | H16: 0.234906139 | N16: Pharmacy-Drug Store (no Drive-Thru) | O16: Worship Place | P16: Unrefrig Warehouse- Rail | R16: Hotel | S16: Retirement Community | T16: Gas-Service Station
B17: Education | C17: School – Junior High | D17: KSF | E17: 52 | F17: 0.2214098857 | G17: 304 | H17: 0.2106595637 | N17: Pharmacy-Drug Store (w/ Drive-Thru) | R17: Motel | S17: Single Family Housing | T17: Hardware-Paint Store
B18: Education | C18: Library | D18: KSF | E18: 52 | F18: 0.2214098857 | G18: 88 | H18: 0.8105225774 | N18: Research & Development | R18: Movie Theater (no matinee) | T18: Home Improve Superstore
B19: Education | C19: College – University (4-year) | D19: KSF | E19: 52 | F19: 0.2210349662 | G19: 599 | H19: 0.1283768692 | R19: Quality Restaurant | T19: Regional Shopping Center
B20: Education | C20: Worship Place | D20: KSF | E20: 52 | F20: 0.2214098857 | G20: 234 | H20: 0.155738204 | R20: Racquet Club | T20: Strip Mall
B21: Industrial | C21: General Heavy Industry | D21: KSF | E21: 52 | F21: 0.2214098857 | G21: 718.9551186 | H21: 0.09912734652 | R21: Recreational Swimming Pool | T21: Supermarket
B22: Industrial | C22: General Light Industry | D22: KSF | E22: 52 | F22: 0.3201431915 | G22: 843.3019958 | H22: 0.1002049721
B23: Industrial | C23: Industrial Park | D23: KSF | E23: 52 | F23: 0.2214098857 | G23: 1065.256845 | H23: 0.08020700152
B24: Industrial | C24: Manufacturing | D24: KSF | E24: 52 | F24: 0.2214098857 | G24: 718.9551186 | H24: 0.09912734652
B25: Industrial | C25: Refrig Warehouse- No Rail | D25: KSF | E25: 52 | F25: 0.2214098857 | G25: 1319.873879 | H25: 0.07027295789
B26: Industrial | C26: Refrig Warehouse- Rail | D26: KSF | E26: 52 | F26: 0.2214098857 | G26: 1319.873879 | H26: 0.07027295789
B27: Industrial | C27: Unrefrig Warehouse- No Rail | D27: KSF | E27: 52 | F27: 0.2214098857 | G27: 1423.337463 | H27: 0.06574835109
B28: Industrial | C28: Unrefrig Warehouse- Rail | D28: KSF | E28: 52 | F28: 0.2214098857 | G28: 1423.337463 | H28: 0.06574835109
B29: Parking | C29: Enclosed Parking Structure | D29: Spaces | E29: 3057 | F29: 0.08856395429 | G29: 282426.7782 | H29: 0.0003506849315
B30: Parking | C30: Enclosed Parking w/ Elevator | D30: Spaces | E30: 3057 | F30: 0.08856395429 | G30: 282426.7782 | H30: 0.0003506849315
B31: Parking | C31: Other Asphalt Surfaces | D31: KSF | E31: 1223 | F31: 0.2214098857 | G31: 112970.7113 | H31: 0.0008767123288
B32: Parking | C32: Other Non-Asphalt Surfaces | D32: KSF | E32: 1223 | F32: 0.2214098857 | G32: 112970.7113 | H32: 0.0008767123288
B33: Parking | C33: Parking Lot | D33: Spaces | E33: 3057 | F33: 0.08856395429 | G33: 282427 | H33: 0.0003506849315
B34: Parking | C34: Unenclosed Parking Structure | D34: Spaces | E34: 3057 | F34: 0.08856395429 | G34: 282427 | H34: 0.0003506849315
B35: Parking | C35: Unenclosed Parking Structure w/ Elevator | D35: Spaces | E35: 3057 | F35: 0.08856395429 | G35: 282427 | H35: 0.0003506849315
B36: Recreational | C36: Arena | D36: KSF | E36: 180 | F36: 0.2490005074 | G36: 514 | H36: 0.166768138
B37: Recreational | C37: City Park | D37: Acres | E37: 1 | F37: 9.644631905 | G37: 2871 | H37: 0.573861485
B38: Recreational | C38: Fast Food Rest No DriveThru | D38: KSF | E38: 52 | F38: 0.2214098857 | G38: 10 | H38: 4.671334348
B39: Recreational | C39: Fast Food Rest w DriveThru | D39: KSF | E39: 52 | F39: 0.2214098857 | G39: 12 | H39: 5.276702182
B40: Recreational | C40: Golf Course | D40: Acres | E40: 1 | F40: 9.644631905 | G40: 426 | H40: 0.04596903215
B41: Recreational | C41: Health Club | D41: KSF | E41: 52 | F41: 0.2214098857 | G41: 201 | H41: 0.3831861999
B42: Recreational | C42: High Turnover (Sit Down Restaurant) | D42: KSF | E42: 52 | F42: 0.2214098857 | G42: 51 | H42: 1.325114155
B43: Recreational | C43: Hotel | D43: Rooms | E43: 52 | F43: 0.3202817626 | G43: 544 | H43: 0.1580569585
B44: Recreational | C44: Motel | D44: Rooms | E44: 52 | F44: 0.4342664422 | G44: 719 | H44: 0.130379777
B45: Recreational | C45: Movie Theater (no matinee) | D45: KSF | E45: 52 | F45: 0.2184408132 | G45: 36 | H45: 1.249907442
B46: Recreational | C46: Quality Restaurant | D46: KSF | E46: 52 | F46: 0.2214098857 | G46: 79 | H46: 0.950492136
B47: Recreational | C47: Racquet Club | D47: KSF | E47: 52 | F47: 0.2214098857 | G47: 295 | H47: 0.2189142567
B48: Recreational | C48: Recreational Swimming Pool | D48: KSF | E48: 2164 | F48: 0.2214098857 | G48: 252 | H48: 0.2658944698
B49: Residential | C49: Apartments High Rise | D49: DU | E49: 38 | F49: 0.1634861627 | G49: 114 | H49: 0.1227011669
B50: Residential | C50: Apartments Low Rise | D50: DU | E50: 76 | F50: 0.2405787037 | G50: 107.7553953 | H50: 0.1566331811
B51: Residential | C51: Apartments Mid Rise | D51: DU | E51: 38 | F51: 0.2181192345 | G51: 112.3630575 | H51: 0.1322597666
B52: Residential | C52: Condo-Townhouse | D52: DU | E52: 76 | F52: 0.2405787037 | G52: 108 | H52: 0.1570380518
B53: Residential | C53: Condo-Townhouse Hi-Rise | D53: DU | E53: 38 | F53: 0.1787714544 | G53: 112 | H53: 0.1322597666
B54: Residential | C54: Congregate Care (Assisted Living) | D54: DU | E54: 76 | F54: 0.2405787037 | G54: 117 | H54: 0.1042029427
B55: Residential | C55: Mobile Home Park | D55: DU | E55: 63 | F55: 0.2910052735 | G55: 111 | H55: 0.1387172599
B56: Residential | C56: Retirement Community | D56: DU | E56: 76 | F56: 0.2426889904 | G56: 118 | H56: 0.09920040589
B57: Residential | C57: Single Family Housing | D57: DU | E57: 46 | F57: 0.3942389805 | G57: 50 | H57: 0.2375640499
B58: Retail | C58: Auto Care Center | D58: KSF | E58: 52 | F58: 0.221120749 | G58: 277 | H58: 0.2809842719
B59: Retail | C59: Convenience Market (24-hr) | D59: KSF | E59: 52 | F59: 0.221120749 | G59: 7 | H59: 8.743730086
B60: Retail | C60: Convenience Market w/ Gas Pumps | D60: KSF | E60: 52 | F60: 0.221120749 | G60: 12 | H60: 6.51394825
B61: Retail | C61: Discount Club | D61: KSF | E61: 52 | F61: 0.221120749 | G61: 129 | H61: 0.5104982243
B62: Retail | C62: Electronic Superstore | D62: KSF | E62: 52 | F62: 0.221120749 | G62: 129 | H62: 0.5062465753
B63: Retail | C63: Free-Standing Discount Store | D63: KSF | E63: 52 | F63: 0.221120749 | G63: 99 | H63: 0.6684180619
B64: Retail | C64: Free-Standing Discount Superstore | D64: KSF | E64: 52 | F64: 0.221120749 | G64: 109 | H64: 0.632152207
B65: Retail | C65: Gas-Service Station | D65: Pumps | F65: 0.1316305992 | G65: 42 | H65: 1.796709636
B66: Retail | C66: Hardware-Paint Store | D66: KSF | E66: 52 | F66: 0.221120749 | G66: 593 | H66: 0.1450289193
B67: Retail | C67: Home Improve Superstore | D67: KSF | E67: 52 | F67: 0.221120749 | G67: 125 | H67: 0.4518883815
B68: Retail | C68: Regional Shopping Center | D68: KSF | E68: 52 | F68: 0.221120749 | G68: 148 | H68: 0.451847793
B69: Retail | C69: Strip Mall | D69: KSF | E69: 52 | F69: 0.221120749 | G69: 154 | H69: 0.4910969051
B70: Retail | C70: Supermarket | D70: KSF | E70: 52 | F70: 0.221120749 | G70: 41 | H70: 1.393150685
E71: 0

Sheet Macro1
